fUSD/lending_fUSD_20260405
["ID","MTS","AMOUNT","RATE_DAILY","PERIOD"]
[419804356,1775389846431,-806.66,0.00013698,2]
[419804357,1775389846441,-806.66,0.00013698,2]
[419804358,1775389846451,-806.66,0.00013698,2]
[419804359,1775389846460,-806.66,0.00013698,2]
[419804360,1775389846470,-806.66,0.00013698,2]
[419804361,1775389846480,-806.66,0.00013698,2]
[419804362,1775389846490,-806.66,0.00013698,2]
[419804363,1775389846500,-806.66,0.00013698,2]
[419804364,1775389846510,-806.66,0.00013698,2]
[419804365,1775389846520,-806.66,0.00013698,2]
[419804366,1775389846530,-806.66,0.00013698,2]
[419804367,1775389846540,-806.66,0.00013698,2]
[419804368,1775389846550,-806.66,0.00013698,2]
[419804369,1775389846559,-806.66,0.00013698,2]
[419804370,1775389846570,-806.66,0.00013698,2]
[419804371,1775389846580,-806.66,0.00013698,2]
[419804372,1775389846590,-806.66,0.00013698,2]
[419804373,1775389846600,-806.66,0.00013698,2]
[419804374,1775389846611,-806.66,0.00013698,2]
[419804375,1775389846622,-806.84950636,0.00013698,2]
[419804376,1775389846632,-1268.28,0.00013698,2]
[419804377,1775389846641,-1268.28,0.00013698,2]
[419804378,1775389846652,-1268.28,0.00013698,2]
[419804379,1775389846662,-1268.28,0.00013698,2]
[419804380,1775389846671,-1268.28,0.00013698,2]
[419804381,1775389846681,-1268.28,0.00013698,2]
[419804382,1775389846690,-1268.28,0.00013698,2]
[419804383,1775389846700,-1268.28,0.00013698,2]
[419804384,1775389846710,-1268.28,0.00013698,2]
[419804385,1775389846722,-1268.28,0.00013698,2]
[419804386,1775389846732,-1268.28,0.00013698,2]
[419804387,1775389846742,-1268.28,0.00013698,2]
[419804388,1775389846751,-1268.28,0.00013698,2]
[419804389,1775389846761,-1268.28,0.00013698,2]
[419804390,1775389846771,-1268.28,0.00013698,2]
[419804391,1775389846780,-1268.28,0.00013698,2]
[419804392,1775389846790,-1268.28,0.00013698,2]
[419804393,1775389846800,-1268.28,0.00013698,2]
[419804394,1775389846809,-1268.28,0.00013698,2]
[419804395,1775389846819,-1268.28,0.00013698,2]
[419804396,1775389846828,-1268.28,0.00013698,2]
[419804397,1775389846838,-1268.28,0.00013698,2]
[419804398,1775389846848,-1268.28,0.00013698,2]
[419804399,1775389846858,-1268.28484396,0.00013698,2]
[419804400,1775389846867,-500.0,0.00013698,2]
[419804401,1775389846877,-500.0,0.00013698,2]
[419804402,1775389846886,-500.0,0.00013698,2]
[419804403,1775389846896,-500.0,0.00013698,2]
[419804404,1775389846907,-500.0,0.00013698,2]
[419804405,1775389846917,-500.0,0.00013698,2]
[419804406,1775389846927,-500.0,0.00013698,2]
[419804407,1775389846937,-500.0,0.00013698,2]
[419804409,1775389846947,-500.0,0.00013698,2]
[419804411,1775389846956,-500.0,0.00013698,2]
[419804413,1775389846966,-500.0,0.00013698,2]
[419804415,1775389846975,-500.0,0.00013698,2]
[419804416,1775389846986,-500.0,0.00013698,2]
[419804418,1775389846995,-500.0,0.00013698,2]
[419804420,1775389847005,-500.0,0.00013698,2]
[419804422,1775389847015,-500.0,0.00013698,2]
[419804424,1775389847025,-500.0,0.00013698,2]
[419804426,1775389847034,-500.0,0.00013698,2]
[419804427,1775389847044,-500.0,0.00013698,2]
[419804429,1775389847053,-500.0,0.00013698,2]
[419804431,1775389847063,-500.0,0.00013698,2]
[419804433,1775389847072,-500.0,0.00013698,2]
[419804434,1775389847082,-500.0,0.00013698,2]
[419804435,1775389847091,-500.0,0.00013698,2]
[419804436,1775389847100,-500.0,0.00013698,2]
[419804437,1775389847110,-500.0,0.00013698,2]
[419804438,1775389847119,-500.0,0.00013698,2]
[419804439,1775389847129,-500.0,0.00013698,2]
[419804440,1775389847140,-500.0,0.00013698,2]
[419804441,1775389847149,-500.0,0.00013698,2]
[419804442,1775389847159,-433.23440034,0.00013698,2]
[419804443,1775389847168,-500.0,0.00013698,2]
[419804444,1775389847179,-500.0,0.00013698,2]
[419804445,1775389847189,-500.0,0.00013698,2]
[419804446,1775389847200,-500.0,0.00013698,2]
[419804447,1775389847209,-500.0,0.00013698,2]
[419804448,1775389847220,-500.0,0.00013698,2]
[419804449,1775389847331,-500.0,0.00013698,2]
[419804450,1775389847342,-500.0,0.00013698,2]
[419804451,1775389847352,-500.0,0.00013698,2]
[419804452,1775389847362,-434.96,0.00013698,2]
[419804453,1775389847372,-500.0,0.00013698,2]
[419804454,1775389847382,-500.0,0.00013698,2]
[419804455,1775389847393,-500.0,0.00013698,2]
[419804456,1775389847402,-500.0,0.00013698,2]
[419804457,1775389847412,-500.0,0.00013698,2]
[419804458,1775389847423,-500.0,0.00013698,2]
[419804459,1775389847436,-500.0,0.00013698,2]
[419804460,1775389847445,-500.0,0.00013698,2]
[419804461,1775389847456,-500.0,0.00013698,2]
[419804462,1775389847466,-500.0,0.00013698,2]
[419804463,1775389847475,-500.0,0.00013698,2]
[419804464,1775389847486,-500.0,0.00013698,2]
[419804465,1775389847495,-500.0,0.00013698,2]
[419804466,1775389847504,-500.0,0.00013698,2]
[419804467,1775389847515,-500.0,0.00013698,2]
[419804468,1775389847523,-500.0,0.00013698,2]
[419804469,1775389847532,-500.0,0.00013698,2]
[419804470,1775389847542,-500.0,0.00013698,2]
[419804471,1775389847552,-500.0,0.00013698,2]
[419804472,1775389847561,-500.0,0.00013698,2]
[419804473,1775389847571,-500.0,0.00013698,2]
[419804474,1775389847580,-500.0,0.00013698,2]
[419804475,1775389847589,-500.0,0.00013698,2]
[419804476,1775389847599,-500.0,0.00013698,2]
[419804477,1775389847608,-500.0,0.00013698,2]
[419804478,1775389847618,-500.0,0.00013698,2]
[419804479,1775389847627,-500.0,0.00013698,2]
[419804480,1775389847636,-500.0,0.00013698,2]
[419804481,1775389847647,-500.0,0.00013698,2]
[419804482,1775389847656,-500.0,0.00013698,2]
[419804483,1775389847665,-500.0,0.00013698,2]
[419804484,1775389847675,-500.0,0.00013698,2]
[419804485,1775389847684,-500.0,0.00013698,2]
[419804486,1775389847694,-500.0,0.00013698,2]
[419804487,1775389847704,-500.0,0.00013698,2]
[419804488,1775389847713,-500.0,0.00013698,2]
[419804489,1775389847723,-500.0,0.00013698,2]
[419804490,1775389847732,-500.0,0.00013698,2]
[419804491,1775389847741,-500.0,0.00013698,2]
[419804492,1775389847751,-500.0,0.00013698,2]
[419804493,1775389847760,-500.0,0.00013698,2]
[419804494,1775389847769,-500.0,0.00013698,2]
[419804495,1775389847778,-500.0,0.00013698,2]
[419804496,1775389847787,-568.42076477,0.00013698,2]
[419804497,1775389847797,-500.0,0.00013698,2]
[419804498,1775389847806,-500.0,0.00013698,2]
[419804499,1775389847816,-500.0,0.00013698,2]
[419804500,1775389847824,-500.0,0.00013698,2]
[419804501,1775389847834,-500.0,0.00013698,2]
[419804502,1775389847843,-500.0,0.00013698,2]
[419804503,1775389847852,-500.0,0.00013698,2]
[419804504,1775389847862,-500.0,0.00013698,2]
[419804505,1775389847871,-500.0,0.00013698,2]
[419804506,1775389847881,-500.0,0.00013698,2]
[419804507,1775389847891,-500.0,0.00013698,2]
[419804508,1775389847901,-500.0,0.00013698,2]
[419804509,1775389847910,-520.65331997,0.00013698,2]
[419804510,1775389847920,-500.0,0.00013698,2]
[419804511,1775389847929,-500.0,0.00013698,2]
[419804512,1775389847938,-500.0,0.00013698,2]
[419804513,1775389847948,-500.0,0.00013698,2]
[419804514,1775389847958,-378.97,0.00013698,2]
[419804515,1775389847968,-500.0,0.00013698,2]
[419804516,1775389847977,-500.0,0.00013698,2]
[419804517,1775389847987,-500.0,0.00013698,2]
[419804518,1775389847997,-500.0,0.00013698,2]
[419804519,1775389848008,-500.0,0.00013698,2]
[419804520,1775389848017,-500.0,0.00013698,2]
[419804521,1775389848027,-500.0,0.00013698,2]
[419804522,1775389848036,-500.0,0.00013698,2]
[419804523,1775389848046,-500.0,0.00013698,2]
[419804524,1775389848055,-500.0,0.00013698,2]
[419804525,1775389848064,-500.0,0.00013698,2]
[419804526,1775389848074,-500.0,0.00013698,2]
[419804527,1775389848085,-150.0,0.00013699,2]
[419804528,1775389848096,-150.0,0.00013699,2]
[419804529,1775389848105,-150.0,0.00013699,2]
[419804530,1775389848114,-150.0,0.00013699,2]
[419804531,1775389848125,-150.0,0.00013699,2]
[419804532,1775389848135,-150.0,0.00013699,2]
[419804533,1775389848146,-150.0,0.00013699,2]
[419804534,1775389848157,-150.0,0.00013699,2]
[419804535,1775389848166,-476.08,0.00013699,2]
[419804536,1775389848176,-396.73,0.00013699,2]
[419804537,1775389848185,-330.61,0.00013699,2]
[419804538,1775389848195,-275.51,0.00013699,2]
[419804539,1775389848204,-229.59,0.00013699,2]
[419804540,1775389848214,-191.33,0.00013699,2]
[419804541,1775389848225,-159.44,0.00013699,2]
[419804542,1775389848235,-797.21,0.00013699,2]
[419804543,1775389848246,-500.0,0.00013699,2]
[419804544,1775389848256,-500.0,0.00013699,2]
[419804545,1775389848267,-500.0,0.00013699,2]
[419804546,1775389848277,-161.91170216,0.00013699,2]
[419804547,1775389848287,-500.0,0.00013699,2]
[419804548,1775389848296,-500.0,0.00013699,2]
[419804549,1775389848307,-500.0,0.00013699,2]
[419804550,1775389848317,-500.0,0.00013699,2]
[419804551,1775389848327,-500.0,0.00013699,2]
[419804552,1775389848337,-500.0,0.00013699,2]
[419804553,1775389848346,-500.0,0.00013699,2]
[419804554,1775389848355,-500.0,0.00013699,2]
[419804555,1775389848364,-403.93256284,0.00013699,2]
[419804556,1775389848374,-500.0,0.00013699,2]
[419804557,1775389848383,-500.0,0.00013699,2]
[419804558,1775389848392,-519.03182682,0.00013699,2]
[419804559,1775389848402,-500.0,0.00013699,2]
[419804560,1775389848411,-163.60261744,0.00013699,2]
[419804561,1775389848420,-500.0,0.00013699,2]
[419804562,1775389848429,-312.74353669,0.00013699,2]
[419804563,1775389848438,-160.7467095,0.00013699,2]
[419804564,1775389848447,-202.64993829,0.00013699,2]
[419804565,1775389848456,-500.0,0.00013699,2]
[419804566,1775389848466,-500.0,0.00013699,2]
[419804567,1775389848475,-500.0,0.00013699,2]
[419804568,1775389848487,-500.0,0.00013699,2]
[419804569,1775389848497,-500.0,0.00013699,2]
[419804570,1775389848508,-1000.0,0.00013699,7]
[419804571,1775389848519,-500.0,0.00013699,2]
[419804572,1775389848529,-160.34417201,0.00013699,2]
[419804573,1775389848538,-500.0,0.00013699,2]
[419804574,1775389848548,-500.0,0.00013699,2]
[419804575,1775389848558,-339.79133416,0.00013699,2]
[419804576,1775389848567,-500.0,0.00013699,2]
[419804577,1775389848577,-500.0,0.00013699,2]
[419804578,1775389848586,-598.99606082,0.00013699,2]
[419804579,1775389848595,-515.7358709,0.00013699,2]
[419804580,1775389848606,-500.0,0.00013699,2]
[419804581,1775389848615,-500.0,0.00013699,2]
[419804582,1775389848625,-569.20510167,0.00013699,2]
[419804583,1775389848634,-518.73332026,0.00013699,2]
[419804584,1775389848643,-500.0,0.00013699,2]
[419804585,1775389848653,-500.0,0.00013699,2]
[419804586,1775389848662,-210.98153295,0.00013699,2]
[419804587,1775389848671,-162.72924009,0.00013699,2]
[419804588,1775389848681,-500.0,0.00013699,2]
[419804589,1775389848690,-500.50066882,0.00013699,2]
[419804590,1775389848700,-500.0,0.00013699,2]
[419804591,1775389848709,-500.0,0.00013699,2]
[419804592,1775389848718,-673.3,0.00013699,2]
[419804593,1775389848728,-158.41,0.00013699,2]
[419804594,1775389848737,-3165.23481391,0.00013699,2]
[419804595,1775389848746,-929.24359928,0.00013699,2]
[419804596,1775389848755,-236.08210685,0.00013699,2]
[419804597,1775389848765,-356.81480063,0.00013699,2]
[419804598,1775389848774,-588.99,0.00013702,2]
[419804599,1775389848784,-969.24,0.00013702,2]
[419804600,1775389848793,-500.0,0.00013702,2]
[419804601,1775389848803,-512.51,0.00013702,2]
[419804602,1775389848812,-276569.8,0.00013703,2]
[419804603,1775389848821,-2000.0,0.00013738,2]
[419804604,1775389848831,-500.0,0.00013773,2]
[419804605,1775389848840,-500.0,0.00013773,2]
[419804606,1775389848849,-211.04857142,0.00013773,2]
[419804607,1775389848859,-500.0,0.00013773,2]
[419804608,1775389848868,-385.86149772,0.00013773,2]
[419804609,1775389848879,-500.0,0.00013773,2]
[419804610,1775389848888,-500.0,0.00013773,2]
[419804611,1775389848897,-500.0,0.00013773,2]
[419804612,1775389848908,-500.0,0.00013773,2]
[419804614,1775389848917,-500.0,0.00013773,2]
[419804615,1775389848926,-164.79711181,0.00013773,2]
[419804616,1775389848936,-500.0,0.00013773,2]
[419804617,1775389848946,-500.0,0.00013773,2]
[419804618,1775389848957,-1600.0,0.00013792,2]
[419804619,1775389848966,-200.0,0.00013836,2]
[419804620,1775389848975,-1788.38122651,0.00013836,2]
[419804621,1775389848984,-1152.0,0.00013843,2]
[419804622,1775389848994,-200.0604195,0.000139,2]
[419804624,1775389849003,-1152.0,0.00013953,2]
[419804625,1775389849012,-1252.0,0.00013954,2]
[419804626,1775389849022,-150.0,0.00013973,2]
[419804627,1775389849031,-150.0,0.00013973,2]
[419804628,1775389849041,-150.0,0.00013973,2]
[419804629,1775389849050,-150.0,0.00013973,2]
[419804630,1775389849060,-150.0,0.00013973,2]
[419804631,1775389849069,-150.0,0.00013973,2]
[419804632,1775389849078,-8395.69276032,0.00014059,2]
[419804633,1775389849088,-218.7284,0.000141,2]
[419804634,1775389849097,-60000.0,0.00014115,2]
[419804636,1775389849106,-555.72,0.00014117,2]
[419804637,1775389849116,-60621.79192801,0.00014178,2]
[419804638,1775389849127,-150.0,0.00014247,2]
[419804639,1775389849137,-150.0,0.00014247,2]
[419804640,1775389849147,-150.0,0.00014247,2]
[419804641,1775389849157,-150.0,0.00014247,2]
[419804642,1775389849167,-150.0,0.00014247,2]
[419804643,1775389849177,-150.0,0.00014247,2]
[419804644,1775389849187,-730.09729929,0.00014247,2]
[419804645,1775389849197,-1000.0,0.00014247,2]
[419804646,1775389849206,-1000.0,0.00014247,2]
[419804647,1775389849217,-1000.0,0.00014247,2]
[419804648,1775389849228,-1000.0,0.00014247,2]
[419804649,1775389849239,-861.43877969,0.00014247,2]
[419804650,1775389849250,-627.70930647,0.00014247,2]
[419804651,1775389849260,-1000.0,0.00014247,2]
[419804652,1775389849268,-308.03873246,0.00014247,2]
[419804653,1775389849279,-1000.0,0.00014247,2]
[419804654,1775389849290,-1000.0,0.00014247,2]
[419804655,1775389849302,-1000.0,0.00014247,2]
[419804656,1775389849311,-189.74788311,0.00014247,2]
[419804657,1775389849321,-1000.0,0.00014247,2]
[419804658,1775389849330,-500.0,0.00014247,2]
[419804659,1775389849339,-1000.0,0.00014247,2]
[419804660,1775389849348,-1000.0,0.00014247,2]
[419804661,1775389849358,-1000.0,0.00014247,2]
[419804662,1775389849368,-500.99241895,0.00014247,2]
[419804663,1775389849379,-500.0,0.00014247,2]
[419804664,1775389849388,-1000.0,0.00014247,2]
[419804665,1775389849398,-1000.0,0.00014247,2]
[419804666,1775389849407,-1000.0,0.00014247,2]
[419804667,1775389849416,-1000.0,0.00014247,2]
[419804668,1775389849426,-1000.0,0.00014247,2]
[419804669,1775389849437,-1000.0,0.00014247,2]
[419804670,1775389849448,-1000.0,0.00014247,2]
[419804671,1775389849459,-1000.0,0.00014247,2]
[419804672,1775389849468,-1000.0,0.00014247,2]
[419804673,1775389849478,-1000.0,0.00014247,2]
[419804674,1775389849487,-1000.0,0.00014247,2]
[419804675,1775389849496,-790.32775663,0.00014247,2]
[419804676,1775389849506,-1115.0,0.00014273,2]
[419804677,1775389849515,-470.64,0.000143,2]
[419804678,1775389849524,-446.7,0.000143,2]
[419804679,1775389849534,-160.0,0.00014318,2]
[419804680,1775389849544,-169.74230425,0.00014321,2]
[419804681,1775389849553,-1000.0,0.00014321,2]
[419804682,1775389849562,-1000.0,0.00014321,2]
[419804683,1775389849571,-1000.0,0.00014321,2]
[419804684,1775389849580,-180.00096908,0.00014321,2]
[419804685,1775389849590,-1000.0,0.00014321,2]
[419804686,1775389849599,-1000.0,0.00014321,2]
[419804687,1775389849609,-1000.0,0.00014321,2]
[419804688,1775389849618,-1000.0,0.00014321,2]
[419804689,1775389849627,-1000.0,0.00014321,2]
[419804690,1775389849636,-200.0,0.00014384,2]
[419804691,1775389849646,-765.22925782,0.00014384,2]
[419804692,1775389849655,-150.0,0.000144,2]
[419804693,1775389849664,-150.0,0.000144,2]
[419804694,1775389849675,-150.0,0.000144,2]
[419804695,1775389849685,-150.0,0.000144,2]
[419804696,1775389849694,-150.0,0.000144,2]
[419804697,1775389849704,-150.0,0.000144,2]
[419804698,1775389849714,-150.0,0.000144,2]
[419804699,1775389849724,-150.0,0.000144,2]
[419804700,1775389849733,-150.0,0.000144,2]
[419804701,1775389849743,-150.0,0.000144,2]
[419804702,1775389849753,-150.0,0.000144,2]
[419804703,1775389849763,-150.0,0.000144,2]
[419804704,1775389849772,-150.0,0.000144,2]
[419804705,1775389849781,-151.75828689,0.000144,2]
[419804706,1775389849791,-150.0,0.00014419,2]
[419804707,1775389849800,-150.0,0.00014422,2]
[419804708,1775389849809,-508.0,0.00014423,3]
[419804709,1775389849818,-150.0,0.00014426,2]
[419804710,1775389849828,-150.0,0.0001443,2]
[419804711,1775389849838,-150.0,0.0001443,2]
[419804712,1775389849847,-150.0,0.00014434,2]
[419804713,1775389849856,-150.0,0.00014437,2]
[419804714,1775389849866,-600.0,0.00014443,2]
[419804715,1775389849874,-298.81,0.00014443,2]
[419804716,1775389849883,-150.0,0.00014444,2]
[419804717,1775389849893,-150.0,0.00014452,2]
[419804718,1775389849902,-150.0,0.00014453,2]
[419804719,1775389849912,-150.0,0.00014456,2]
[419804720,1775389849921,-150.0,0.0001446,2]
[419804721,1775389849930,-150.0,0.0001446,2]
[419804722,1775389849940,-150.0,0.00014466,2]
[419804723,1775389849949,-150.0,0.00014468,2]
[419804724,1775389849958,-150.0,0.00014474,2]
[419804725,1775389849967,-150.0,0.00014479,2]
[419804726,1775389849976,-150.0,0.00014488,2]
[419804727,1775389849985,-150.0,0.00014491,2]
[419804728,1775389849994,-150.0,0.00014491,2]
[419804729,1775389850003,-150.0,0.00014493,2]
[419804730,1775389850012,-150.0,0.00014494,2]
[419804731,1775389850021,-150.0,0.00014502,2]
[419804732,1775389850030,-1619.684,0.00014504,2]
[419804733,1775389850039,-150.0,0.00014505,2]
[419804734,1775389850048,-150.0,0.00014507,2]
[419804735,1775389850056,-150.0,0.0001451,2]
[419804736,1775389850066,-470.64,0.0001451,2]
[419804737,1775389850075,-150.0,0.00014512,2]
[419804738,1775389850084,-150.0,0.00014521,2]
[419804739,1775389850093,-150.0,0.00014521,2]
[419804740,1775389850102,-150.0,0.0001453,2]
[419804741,1775389850112,-150.0,0.00014531,2]
[419804742,1775389850121,-150.0,0.00014532,2]
[419804743,1775389850130,-150.0,0.00014536,2]
[419804744,1775389850140,-150.0,0.00014549,2]
[419804745,1775389850151,-150.0,0.00014551,2]
[419804746,1775389850161,-150.0,0.00014551,2]
[419804747,1775389850171,-150.0,0.00014553,2]
[419804748,1775389850180,-150.0,0.00014557,2]
[419804749,1775389850190,-150.0,0.0001456,2]
[419804750,1775389850201,-150.0,0.00014567,2]
[419804751,1775389850211,-150.0,0.0001457,2]
[419804752,1775389850220,-150.0,0.00014575,2]
[419804753,1775389850229,-150.0,0.00014581,2]
[419804754,1775389850239,-150.0,0.00014581,2]
[419804755,1775389850249,-150.0,0.00014584,2]
[419804756,1775389850258,-150.0,0.00014586,2]
[419804757,1775389850268,-150.0,0.00014588,2]
[419804758,1775389850278,-150.0,0.00014597,2]
[419804759,1775389850288,-150.0,0.00014604,2]
[419804760,1775389850299,-150.0,0.00014605,2]
[419804761,1775389850309,-150.0,0.0001461,2]
[419804762,1775389850320,-150.0,0.00014611,2]
[419804763,1775389850332,-150.0,0.00014611,2]
[419804764,1775389850342,-150.0,0.00014613,2]
[419804765,1775389850352,-150.0,0.00014619,2]
[419804766,1775389850361,-150.0,0.00014623,2]
[419804767,1775389850370,-150.0,0.00014636,2]
[419804768,1775389850379,-150.0,0.00014638,2]
[419804769,1775389850388,-150.0,0.00014641,2]
[419804770,1775389850398,-150.0,0.00014642,2]
[419804771,1775389850407,-150.0,0.00014642,2]
[419804772,1775389850416,-150.0,0.00014642,2]
[419804773,1775389850426,-150.0,0.0001466,2]
[419804774,1775389850435,-150.0,0.00014662,2]
[419804775,1775389850444,-150.0,0.00014663,2]
[419804776,1775389850453,-150.0,0.00014667,2]
[419804777,1775389850463,-150.0,0.00014672,2]
[419804778,1775389850472,-150.0,0.00014672,2]
[419804779,1775389850481,-150.0,0.00014672,2]
[419804780,1775389850490,-150.0,0.00014679,2]
[419804781,1775389850500,-150.0,0.00014682,2]
[419804782,1775389850509,-150.0,0.00014685,2]
[419804783,1775389850518,-150.0,0.00014689,2]
[419804784,1775389850528,-1351.01242561,0.00014695,2]
[419804785,1775389850537,-150.0,0.00014698,2]
[419804786,1775389850546,-1000.0,0.00014701,2]
[419804787,1775389850555,-1000.0,0.00014701,2]
[419804788,1775389850565,-1000.0,0.00014701,2]
[419804789,1775389850574,-1000.0,0.00014701,2]
[419804790,1775389850584,-1000.0,0.00014701,2]
[419804791,1775389850593,-150.0,0.00014702,2]
[419804792,1775389850603,-150.0,0.00014702,2]
[419804793,1775389850613,-150.0,0.00014706,2]
[419804794,1775389850622,-150.0,0.00014707,2]
[419804795,1775389850631,-150.0,0.00014715,2]
[419804796,1775389850640,-150.0,0.00014716,2]
[419804797,1775389850650,-470.65,0.0001472,2]
[419804798,1775389850659,-446.70732607,0.0001472,2]
[419804799,1775389850668,-150.0,0.0001472,2]
[419804800,1775389850677,-150.0,0.0001472,2]
[419804801,1775389850686,-150.0,0.00014729,2]
[419804802,1775389850696,-150.0,0.00014732,2]
[419804803,1775389850706,-150.0,0.00014732,2]
[419804804,1775389850715,-150.0,0.00014735,2]
[419804805,1775389850725,-150.0,0.0001474,2]
[419804806,1775389850735,-150.0,0.00014741,2]
[419804807,1775389850744,-150.0,0.00014751,2]
[419804808,1775389850754,-150.0,0.00014753,2]
[419804809,1775389850763,-150.0,0.00014762,2]
[419804810,1775389850772,-150.0,0.00014762,2]
[419804811,1775389850782,-150.0,0.00014767,2]
[419804812,1775389850791,-60621.79192801,0.00014768,2]
[419804813,1775389850800,-150.0,0.0001477,4]
[419804814,1775389850810,-150.0,0.00014772,2]
[419804815,1775389850819,-150.0,0.00014773,2]
[419804816,1775389850829,-150.0,0.00014773,2]
[419804817,1775389850839,-150.0,0.00014774,2]
[419804818,1775389850848,-150.0,0.00014776,2]
[419804819,1775389850858,-150.0,0.00014791,2]
[419804820,1775389850868,-150.0,0.00014792,2]
[419804821,1775389850877,-150.0,0.00014792,2]
[419804822,1775389850888,-150.0,0.00014793,2]
[419804823,1775389850898,-150.0,0.00014795,2]
[419804824,1775389850908,-1500.0,0.00014795,2]
[419804825,1775389850918,-1227.692277,0.00014795,2]
[419804826,1775389850928,-1500.0,0.00014795,2]
[419804827,1775389850938,-1515.96545288,0.00014795,2]
[419804828,1775389850948,-953.31303788,0.00014795,2]
[419804829,1775389850958,-1500.0,0.00014795,2]
[419804830,1775389850967,-1500.0,0.00014795,2]
[419804831,1775389850978,-1500.0,0.00014795,2]
[419804832,1775389850987,-1500.0,0.00014795,2]
[419804833,1775389850997,-1500.0,0.00014795,2]
[419804834,1775389851007,-418.3764967,0.00014795,2]
[419804835,1775389851017,-1500.0,0.00014795,2]
[419804836,1775389851027,-1500.0,0.00014795,2]
[419804837,1775389851036,-1500.0,0.00014795,2]
[419804838,1775389851046,-1503.24663382,0.00014795,2]
[419804839,1775389851056,-1175.09161132,0.00014795,2]
[419804840,1775389851065,-1500.0,0.00014795,2]
[419804841,1775389851075,-1500.0,0.00014795,2]
[419804842,1775389851085,-1500.0,0.00014795,2]
[419804843,1775389851096,-1500.0,0.00014795,2]
[419804844,1775389851106,-1500.0,0.00014795,2]
[419804845,1775389851116,-1500.0,0.00014795,2]
[419804846,1775389851125,-1500.0,0.00014795,2]
[419804847,1775389851135,-553.41835149,0.00014795,2]
[419804848,1775389851145,-304.0,0.00014804,4]
[419804849,1775389851155,-150.0,0.00014809,2]
[419804850,1775389851165,-150.0,0.00014809,2]
[419804851,1775389851175,-150.0,0.00014816,2]
[419804852,1775389851184,-150.0,0.0001482,2]
[419804853,1775389851194,-150.0,0.00014823,2]
[419804854,1775389851204,-150.0,0.00014823,2]
[419804855,1775389851214,-150.0,0.00014827,2]
[419804856,1775389851225,-150.0,0.00014828,2]
[419804857,1775389851236,-246.99,0.00014838,2]
[419804858,1775389851246,-150.0,0.00014838,2]
[419804859,1775389851256,-150.0,0.00014843,2]
[419804860,1775389851267,-150.0,0.00014846,2]
[419804861,1775389851278,-150.0,0.00014847,2]
[419804862,1775389851289,-150.0,0.00014853,2]
[419804863,1775389851300,-150.0,0.00014853,2]
[419804864,1775389851311,-246.99,0.0001486,2]
[419804865,1775389851322,-150.0,0.0001486,2]
[419804866,1775389851333,-150.0,0.00014865,2]
[419804867,1775389851343,-1500.0,0.00014868,2]
[419804868,1775389851353,-1500.0,0.00014868,2]
[419804869,1775389851363,-1500.0,0.00014868,2]
[419804870,1775389851374,-1500.0,0.00014868,2]